{"text_format":"1","workbook":"xlsx","n_sheets":2,"sheets":["руб.","шаблон плана"],"not_rendered":{"charts":0,"images":1,"macros":1,"external_links":0,"defined_names":4,"comments":0,"pivot_tables":0},"unopened":[],"bounds":{"document_bytes":16777216,"sheet_cells":100000,"rows_first":2000,"rows_last":500,"rows_between":2000,"halvings":0,"cell_chars":16384,"cell_head_chars":4096},"cells_cut":0,"cells_raw":0,"read":"whole","date_system":"1900"}

{"sheet":"руб.","index":0,"n_rows":293,"n_cols":47,"rows_kept":293,"cut":false,"hidden":false,"merged":[[1,29,2,29],[1,30,2,30],[2,35,5,38],[0,3,0,24],[1,14,2,18],[1,20,2,24],[1,3,2,3]]}
[{"$f":"TODAY()","v":"2019-12-17"},null,null,"ЕКБ Сулимова",null,null,null,null,null,null,null,null,null,null,null,null,null,null,null,null,null,null,null,null,null,null,null,null," "]
[{"$f":"A1-1","v":"2019-12-16"},null,null,"План ","у.е.","руб",null,"руб",null,null,null,null,null,null,"Количество чеков",null,null,null,null,null,"Средний чек",null,null,null,null,null,null,null,null,"С 1-15","С 15-31",null,null,null,null,null,null,null,null,null,null,null,null,null,null,null,true]
[null,null,null,null,{"$f":"SUM(B5:B35)","v":168000},{"$f":"E3*70","v":11760000},null,{"$f":"E3*70","v":11760000},null,null,null,null,null,null,null,null,null,null,null,null,null,null,null,null,null,null,null,null,null,null,null,null,null,null,null,"ГРАФИК.xlsx"]
["коэф. по ТО","план по ТО",null,null,"Факт ","План из рейтинга","Корректировка плана","План","Выполнение","План накопительно","Факт накопительно","Выполнение накопительно","коэф. По чекам","Разница","Количество чеков","план по чекам","Корректировка","План по чекам","Выполнение","Средний чек","Средний чек","Кол-во ед. товара","Среднее кол-во в чеке","Штуки в чеке","Средняя цена товара (руб.)","Средняя цена товара (руб.)",null,null,null,"5 SKY","5 SKY",null,null,null,null,null,null,null,null,null,null,null,null,"Ограничение"]
[2.5215898935848639E-2,4236.2710212225711,{"$f":"WEEKDAY(D5)","v":"1900-01-01"},"2019-12-01",306110,{"$f":"B5*70","v":296538.97148557997},null,{"$f":"MAX(F5,G5)","v":296538.97148557997},{"$f":"IFERROR(E5/H5,0)","v":1.0322757864386991},{"$f":"H5","v":296538.97148557997},{"$f":"E5","v":306110},{"$f":"K5/J5","v":1.0322757864386991},2.8093462727600067E-2,{"$f":"E5-H5","v":9571.0285144200316},1041,1025.4113895574021,null,{"$f":"MAX(P5,Q5)","v":1025.4113895574021},{"$f":"IFERROR(O5/R5,0)","v":1.0152022989030056},{"$f":"E5/O5","v":294.05379442843417},{"$f":"IFERROR(T5,0)","v":294.05379442843417},4864,{"$f":"V5/O5","v":4.6724303554274735},{"$f":"IFERROR(W5,0)","v":4.6724303554274735},{"$f":"IFERROR(Z5,0)","v":62.93379934210526},{"$f":"E5/V5","v":62.93379934210526},{"$f":"H5/R5","v":289.19024550095446},null,null,5094,null,null,null,null,null,null,null,null,null,null,null,null,null,2]
[1.8276736810878446E-2,3070.4917842275795,{"$f":"WEEKDAY(D6)","v":"1900-01-02"},"2019-12-02",209230,{"$f":"B6*70","v":214934.42489593057},{"$f":"IFERROR($F6+IF($E5>0,SUMPRODUCT(($F$5:$F5-$E$5:$E5)*($F6/SUM($F6:$F$35))),SUMPRODUCT(($F$5:$F5-$E$5:$E5)*($F6/SUMIF($E$6:$E$35,\"\",$F$6:$F$35))*($E$5:$E5>0))),\"\")","v":214754.97267776605},214934.42489593057,0.97345969637626639,{"$f":"F6+J5","v":511473.39638151054},{"$f":"E6+K5","v":515340},{"$f":"K6/J6","v":1.0075597355519257},2.4251799106714333E-2,-5704.4248959305696,894,885.19066739507286,{"$f":"IFERROR($P6+IF($O5>0,SUMPRODUCT(($P$5:$P5-$O$5:$O5)*($P6/SUM($P6:$P$35))),SUMPRODUCT(($P$5:$P5-$O$5:$O5)*($P6/SUMIF($O$6:$O$35,\"\",$P$6:$P$35))*($O$5:$O5>0))),\"\")","v":884.80168776142648},{"$f":"MAX(P6,Q6)","v":885.19066739507286},{"$f":"IFERROR(O6/R6,0)","v":1.0099519040692682},234.03803131991052,{"$f":"IFERROR(T6,0)","v":234.03803131991052},3455,3.8646532438478749,{"$f":"IFERROR(W6,0)","v":3.8646532438478749},{"$f":"IFERROR(Z6,0)","v":60.558610709117218},60.558610709117218,242.81144482514335,null,null,3975,null,null,null,null,null,null,null,null,null,null,null,null,null,2]
[2.1768371743445026E-2,3657.0864528987649,{"$f":"WEEKDAY(D7)","v":"1900-01-03"},"2019-12-03",273910,255996.05170291354,{"$f":"IFERROR($F7+IF($E6>0,SUMPRODUCT(($F$5:$F6-$E$5:$E6)*($F7/SUM($F7:$F$35))),SUMPRODUCT(($F$5:$F6-$E$5:$E6)*($F7/SUMIF($E$6:$E$35,\"\",$F$6:$F$35))*($E$5:$E6>0))),\"\")","v":255908.05482165844},255996.05170291354,1.0699774398000319,767469.44808442402,789250,{"$f":"K7/J7","v":1.0283796989833791},2.3995995789910358E-2,17913.948297086463,1006,875.85384633172782,{"$f":"IFERROR($P7+IF($O6>0,SUMPRODUCT(($P$5:$P6-$O$5:$O6)*($P7/SUM($P7:$P$35))),SUMPRODUCT(($P$5:$P6-$O$5:$O6)*($P7/SUMIF($O$6:$O$35,\"\",$P$6:$P$35))*($O$5:$O6>0))),\"\")","v":875.23605494096864},875.85384633172782,{"$f":"IFERROR(O7/R7,0)","v":1.1485934602141139},272.27634194831012,272.27634194831012,4499,4.4721669980119287,4.4721669980119287,60.882418315181148,60.882418315181148,292.28170062286347,null,null,4482,null,null,null,null,null,null,null,null,null,null,null,null,null,2]
[2.0264409695956519E-2,3404.4208289206958,"1900-01-04","2019-12-04",243530,238309.45802444872,{"$f":"IFERROR($F8+IF($E7>0,SUMPRODUCT(($F$5:$F7-$E$5:$E7)*($F8/SUM($F8:$F$35))),SUMPRODUCT(($F$5:$F7-$E$5:$E7)*($F8/SUMIF($E$6:$E$35,\"\",$F$6:$F$35))*($E$5:$E7>0))),\"\")","v":237837.27270752279},238309.45802444872,1.0219065664402447,1005778.9061088727,1032780,1.0268459536456063,2.6913581469522361E-2,5220.5419755512848,903,982.34572363756592,{"$f":"IFERROR($P8+IF($O7>0,SUMPRODUCT(($P$5:$P7-$O$5:$O7)*($P8/SUM($P8:$P$35))),SUMPRODUCT(($P$5:$P7-$O$5:$O7)*($P8/SUMIF($O$6:$O$35,\"\",$P$6:$P$35))*($O$5:$O7>0))),\"\")","v":977.84261556661761},982.34572363756592,0.91922831063614385,269.68992248062017,269.68992248062017,3905,4.3244739756367663,4.3244739756367663,62.363636363636367,62.363636363636367,242.59224862505985,null,null,3338]
[2.1070706280513156E-2,3539.8786551262106,"1900-01-05","2019-12-05",236600,247791.50585883475,{"$f":"IFERROR($F9+IF($E8>0,SUMPRODUCT(($F$5:$F8-$E$5:$E8)*($F9/SUM($F9:$F$35))),SUMPRODUCT(($F$5:$F8-$E$5:$E8)*($F9/SUMIF($E$6:$E$35,\"\",$F$6:$F$35))*($E$5:$E8>0))),\"\")","v":247169.36487282519},247791.50585883475,0.95483498992410787,1253570.4119677076,1269380,1.0126116474043738,2.6030548055091737E-2,-11191.505858834746,888,950.11500401084822,{"$f":"IFERROR($P9+IF($O8>0,SUMPRODUCT(($P$5:$P8-$O$5:$O8)*($P9/SUM($P9:$P$35))),SUMPRODUCT(($P$5:$P8-$O$5:$O8)*($P9/SUMIF($O$6:$O$35,\"\",$P$6:$P$35))*($O$5:$O8>0))),\"\")","v":947.93215993271633},950.11500401084822,0.93462369950097224,266.44144144144144,{"$f":"IFERROR(T9,0)","v":266.44144144144144},3812,4.2927927927927927,{"$f":"IFERROR(W9,0)","v":4.2927927927927927},62.067156348373558,62.067156348373558,260.80159224178038,null,null,4137]
[2.2007668591005603E-2,3697.2883232889417,"1900-01-06","2019-12-06",240730,258810.18263022593,{"$f":"IFERROR($F10+IF($E9>0,SUMPRODUCT(($F$5:$F9-$E$5:$E9)*($F10/SUM($F10:$F$35))),SUMPRODUCT(($F$5:$F9-$E$5:$E9)*($F10/SUMIF($E$6:$E$35,\"\",$F$6:$F$35))*($E$5:$E9>0))),\"\")","v":258420.7370691376},258810.18263022593,0.9301411465094559,1512380.5945979336,1510110,0.99849866190690095,2.5666727858491268E-2,-18080.182630225929,909,936.83556683493111,{"$f":"IFERROR($P10+IF($O9>0,SUMPRODUCT(($P$5:$P9-$O$5:$O9)*($P10/SUM($P10:$P$35))),SUMPRODUCT(($P$5:$P9-$O$5:$O9)*($P10/SUMIF($O$6:$O$35,\"\",$P$6:$P$35))*($O$5:$O9>0))),\"\")","v":936.44989824918741},936.83556683493111,0.97028767072862887,264.82948294829481,264.82948294829481,3782,4.1606160616061603,4.1606160616061603,63.651507139079854,63.651507139079854,276.25998819046532,null,null,3933,null,null,null,null,null,null,null,null,null,null,null,null,null,1]
[3.0883877658289444E-2,5188.4914465926277,"1900-01-07","2019-12-07",350770,363194.40126148396,{"$f":"IFERROR($F11+IF($E10>0,SUMPRODUCT(($F$5:$F10-$E$5:$E10)*($F11/SUM($F11:$F$35))),SUMPRODUCT(($F$5:$F10-$E$5:$E10)*($F11/SUMIF($E$6:$E$35,\"\",$F$6:$F$35))*($E$5:$E10>0))),\"\")","v":363274.87529285456},363274.87529285456,0.96557737365466378,1875574.9958594176,1860880,0.99216507156906086,3.5037940154753006E-2,-12504.875292854558,1177,1278.8848156484844,{"$f":"IFERROR($P11+IF($O10>0,SUMPRODUCT(($P$5:$P10-$O$5:$O10)*($P11/SUM($P11:$P$35))),SUMPRODUCT(($P$5:$P10-$O$5:$O10)*($P11/SUMIF($O$6:$O$35,\"\",$P$6:$P$35))*($O$5:$O10>0))),\"\")","v":1279.4964811312457},1279.4964811312457,0.91989311213999969,298.02039082412915,298.02039082412915,5335,4.5327102803738315,4.5327102803738315,65.748828491096532,65.748828491096532,283.92018317367399,null,null,3790,null,null,null,null,null,null,null,null,null,null,null,null,null,1]
[2.6454146246960304E-2,4444.2965694893319,"1900-01-01","2019-12-08",336350,311100.75986425322,{"$f":"IFERROR($F12+IF($E11>0,SUMPRODUCT(($F$5:$F11-$E$5:$E11)*($F12/SUM($F12:$F$35))),SUMPRODUCT(($F$5:$F11-$E$5:$E11)*($F12/SUMIF($E$6:$E$35,\"\",$F$6:$F$35))*($E$5:$E11>0))),\"\")","v":311563.2677366031},311563.2677366031,1.0795560158405826,2186675.7557236711,2197230,{"$f":"K12/J12","v":1.0048266160397594},3.0848349056350945E-2,24786.732263396902,1108,1125.9647405568094,{"$f":"IFERROR($P12+IF($O11>0,SUMPRODUCT(($P$5:$P11-$O$5:$O11)*($P12/SUM($P12:$P$35))),SUMPRODUCT(($P$5:$P11-$O$5:$O11)*($P12/SUMIF($O$6:$O$35,\"\",$P$6:$P$35))*($O$5:$O11>0))),\"\")","v":1130.4067345417943},{"$f":"MAX(P12,Q12)","v":1130.4067345417943},0.98017816609091879,303.56498194945846,303.56498194945846,4560,4.115523465703971,4.115523465703971,73.760964912280699,73.760964912280699,275.6204985481566,null,null,3555,null,null,null,null,null,null,null,null,null,null,null,null,null,1]
[2.3718748136964264E-2,3984.7496870099972,"1900-01-02","2019-12-09",244230,278932.47809069982,{"$f":"IFERROR($F13+IF($E12>0,SUMPRODUCT(($F$5:$F12-$E$5:$E12)*($F13/SUM($F13:$F$35))),SUMPRODUCT(($F$5:$F12-$E$5:$E12)*($F13/SUMIF($E$6:$E$35,\"\",$F$6:$F$35))*($E$5:$E12>0))),\"\")","v":278624.96510615514},278932.47809069982,0.87558824871080199,2465608.2338143708,2441460,0.99020597291849044,2.7257542614495145E-2,-34702.47809069982,871,994.90030542907266,{"$f":"IFERROR($P13+IF($O12>0,SUMPRODUCT(($P$5:$P12-$O$5:$O12)*($P13/SUM($P13:$P$35))),SUMPRODUCT(($P$5:$P12-$O$5:$O12)*($P13/SUMIF($O$6:$O$35,\"\",$P$6:$P$35))*($O$5:$O12>0))),\"\")","v":999.60910147955087},999.60910147955087,0.87134060575359629,280.40183696900112,280.40183696900112,3821,4.3869115958668194,4.3869115958668194,63.917822559539388,63.917822559539388,279.04155502170164,null,null,2783]
[2.3941275242709524E-2,4022.1342407752004,"1900-01-03","2019-12-10",251790,281549.39685426402,{"$f":"IFERROR($F14+IF($E13>0,SUMPRODUCT(($F$5:$F13-$E$5:$E13)*($F14/SUM($F14:$F$35))),SUMPRODUCT(($F$5:$F13-$E$5:$E13)*($F14/SUMIF($E$6:$E$35,\"\",$F$6:$F$35))*($E$5:$E13>0))),\"\")","v":282280.90471799183},282280.90471799183,0.89198382105068963,2747157.630668635,2693250,0.98037694303857092,2.783818050002624E-2,-30490.904717991827,942,1016.0935882509575,{"$f":"IFERROR($P14+IF($O13>0,SUMPRODUCT(($P$5:$P13-$O$5:$O13)*($P14/SUM($P14:$P$35))),SUMPRODUCT(($P$5:$P13-$O$5:$O13)*($P14/SUMIF($O$6:$O$35,\"\",$P$6:$P$35))*($O$5:$O13>0))),\"\")","v":1025.6642601457929},1025.6642601457929,0.91842919423369551,267.29299363057322,267.29299363057322,4098,4.3503184713375793,4.3503184713375793,61.442166910688144,61.442166910688144,275.21764741794459]
[2.5026227330452785E-2,4204.4061915160692,"1900-01-04","2019-12-11",262500,294308.43340612482,{"$f":"IFERROR($F15+IF($E14>0,SUMPRODUCT(($F$5:$F14-$E$5:$E14)*($F15/SUM($F15:$F$35))),SUMPRODUCT(($F$5:$F14-$E$5:$E14)*($F15/SUMIF($E$6:$E$35,\"\",$F$6:$F$35))*($E$5:$E14>0))),\"\")","v":296068.75159217324},296068.75159217324,0.88661839045272395,3041466.0640747598,2955750,0.97181751751656142,2.6188501569126707E-2,-33568.751592173241,1004,955.88030727312457,{"$f":"IFERROR($P15+IF($O14>0,SUMPRODUCT(($P$5:$P14-$O$5:$O14)*($P15/SUM($P15:$P$35))),SUMPRODUCT(($P$5:$P14-$O$5:$O14)*($P15/SUMIF($O$6:$O$35,\"\",$P$6:$P$35))*($O$5:$O14>0))),\"\")","v":967.90985039792156},967.90985039792156,1.0372866848986415,261.45418326693226,261.45418326693226,4317,4.2998007968127494,4.2998007968127494,60.806115357887421,60.806115357887421,305.88463529992504]
[2.5454644864530758E-2,4276.3803372411685,"1900-01-05","2019-12-12",286790,299346.62360688177,{"$f":"IFERROR($F16+IF($E15>0,SUMPRODUCT(($F$5:$F15-$E$5:$E15)*($F16/SUM($F16:$F$35))),SUMPRODUCT(($F$5:$F15-$E$5:$E15)*($F16/SUMIF($E$6:$E$35,\"\",$F$6:$F$35))*($E$5:$E15>0))),\"\")","v":302289.64299044141},302289.64299044141,0.94872585498759043,3340812.6876816414,3242540,0.97058419705959698,2.879233399538875E-2,-15499.642990441411,1005,1050.9201908316893,{"$f":"IFERROR($P16+IF($O15>0,SUMPRODUCT(($P$5:$P15-$O$5:$O15)*($P16/SUM($P16:$P$35))),SUMPRODUCT(($P$5:$P15-$O$5:$O15)*($P16/SUMIF($O$6:$O$35,\"\",$P$6:$P$35))*($O$5:$O15>0))),\"\")","v":1062.6568182781425},1062.6568182781425,0.94574276729192241,285.36318407960198,285.36318407960198,4428,4.4059701492537311,4.4059701492537311,64.767389340560072,64.767389340560072,284.46591391588788,null,null,null,null,null,null,null,null,null,null,null,null,null,null,null,null,1]
[2.707297263588199E-2,4548.2594028281756,"1900-01-06","2019-12-13",298439,318378.15819797228,{"$f":"IFERROR($F17+IF($E16>0,SUMPRODUCT(($F$5:$F16-$E$5:$E16)*($F17/SUM($F17:$F$35))),SUMPRODUCT(($F$5:$F16-$E$5:$E16)*($F17/SUMIF($E$6:$E$35,\"\",$F$6:$F$35))*($E$5:$E16>0))),\"\")","v":322094.41680400987},322094.41680400987,0.92655750745780896,3659190.8458796139,3540979,0.96769453935076255,3.0187173272222843E-2,-23655.416804009874,993,1101.8318244361335,{"$f":"IFERROR($P17+IF($O16>0,SUMPRODUCT(($P$5:$P16-$O$5:$O16)*($P17/SUM($P17:$P$35))),SUMPRODUCT(($P$5:$P16-$O$5:$O16)*($P17/SUMIF($O$6:$O$35,\"\",$P$6:$P$35))*($O$5:$O16>0))),\"\")","v":1116.7383387764528},1116.7383387764528,0.88919665916366231,300.54279959718025,300.54279959718025,4500,4.5317220543806647,4.5317220543806647,66.319777777777773,66.319777777777773,288.42424910110145,null,null,null,null,null,null,null,null,null,null,null,null,null,null,null,null,1]
[4.0671039751424533E-2,6832.7346782393224,"1900-01-07","2019-12-14",432067,478291.42747675255,{"$f":"IFERROR($F18+IF($E17>0,SUMPRODUCT(($F$5:$F17-$E$5:$E17)*($F18/SUM($F18:$F$35))),SUMPRODUCT(($F$5:$F17-$E$5:$E17)*($F18/SUMIF($E$6:$E$35,\"\",$F$6:$F$35))*($E$5:$E17>0))),\"\")","v":485270.94167524023},485270.94167524023,0.89036239942253514,4137482.2733563664,3973046,0.9602569237781956,3.7149561127198569E-2,-53203.941675240232,1437,1355.9589811427475,{"$f":"IFERROR($P18+IF($O17>0,SUMPRODUCT(($P$5:$P17-$O$5:$O17)*($P18/SUM($P18:$P$35))),SUMPRODUCT(($P$5:$P17-$O$5:$O17)*($P18/SUMIF($O$6:$O$35,\"\",$P$6:$P$35))*($O$5:$O17>0))),\"\")","v":1381.4984722746578},1381.4984722746578,1.0401748744853536,300.67292971468339,300.67292971468339,6459,4.494780793319415,4.494780793319415,66.89379160860814,66.89379160860814,351.26418987364815]
[3.8223325958660237E-2,6421.518761054921,"1900-01-01","2019-12-15",425273,449506.31327384448,{"$f":"IFERROR($F19+IF($E18>0,SUMPRODUCT(($F$5:$F18-$E$5:$E18)*($F19/SUM($F19:$F$35))),SUMPRODUCT(($F$5:$F18-$E$5:$E18)*($F19/SUMIF($E$6:$E$35,\"\",$F$6:$F$35))*($E$5:$E18>0))),\"\")","v":459203.25930344156},459203.25930344156,0.92611058694376458,4586988.5866302112,4398319,0.95886852930479693,3.4552534259658041E-2,-33930.259303441562,1342,1261.1675004775182,{"$f":"IFERROR($P19+IF($O18>0,SUMPRODUCT(($P$5:$P18-$O$5:$O18)*($P19/SUM($P19:$P$35))),SUMPRODUCT(($P$5:$P18-$O$5:$O18)*($P19/SUMIF($O$6:$O$35,\"\",$P$6:$P$35))*($O$5:$O18>0))),\"\")","v":1281.7346825565101},1281.7346825565101,1.0470185587264336,316.89493293591653,316.89493293591653,5731,4.2704918032786887,4.2704918032786887,74.205723259466055,74.205723259466055,358.26701543842779,null,null,null,null,null,null,null,null,null,null,null,null,null,null,null,null,1]
[2.3320502233832842E-2,3917.844375283918,"1900-01-02","2019-12-16",296632,274249.10626987426,{"$f":"IFERROR($F20+IF($E19>0,SUMPRODUCT(($F$5:$F19-$E$5:$E19)*($F20/SUM($F20:$F$35))),SUMPRODUCT(($F$5:$F19-$E$5:$E19)*($F20/SUMIF($E$6:$E$35,\"\",$F$6:$F$35))*($E$5:$E19>0))),\"\")","v":281462.59897632652},281462.59897632652,1.0538949085201526,4861237.6929000858,4694951,0.96579334247676263,2.7581389711285181E-2,15169.401023673476,1107,1006.7207244619088,{"$f":"IFERROR($P20+IF($O19>0,SUMPRODUCT(($P$5:$P19-$O$5:$O19)*($P20/SUM($P20:$P$35))),SUMPRODUCT(($P$5:$P19-$O$5:$O19)*($P20/SUMIF($O$6:$O$35,\"\",$P$6:$P$35))*($O$5:$O19>0))),\"\")","v":1020.2078159552701},1020.2078159552701,1.0850730436361753,267.96025293586268,267.96025293586268,4731,4.2737127371273713,4.2737127371273713,62.699640667934901,62.699640667934901,275.8875148518436,null,null,null,null,null,null,null,null,null,null,null,null,null,null,null,null,1]
[2.7176259449056772E-2,4565.6115874415382,"1900-01-03","2019-12-17",281791,319592.81112090766,{"$f":"IFERROR($F21+IF($E20>0,SUMPRODUCT(($F$5:$F20-$E$5:$E20)*($F21/SUM($F21:$F$35))),SUMPRODUCT(($F$5:$F20-$E$5:$E20)*($F21/SUMIF($E$6:$E$35,\"\",$F$6:$F$35))*($E$5:$E20>0))),\"\")","v":327296.22649749537},327296.22649749537,0.86096623543613149,5180830.5040209936,4976742,0.96060699073969036,2.9988728165382617E-2,-45505.226497495372,1031,1094.5885780364654,{"$f":"IFERROR($P21+IF($O20>0,SUMPRODUCT(($P$5:$P20-$O$5:$O20)*($P21/SUM($P21:$P$35))),SUMPRODUCT(($P$5:$P20-$O$5:$O20)*($P21/SUMIF($O$6:$O$35,\"\",$P$6:$P$35))*($O$5:$O20>0))),\"\")","v":1104.4294190804985},1104.4294190804985,0.93351370598074723,273.3181377303589,273.3181377303589,4104,3.9806013579049466,3.9806013579049466,68.662524366471729,68.662524366471729,296.3487035414073,null,null,null,3002]
[2.5945274231435528E-2,4358.8060708811699,"1900-01-04","2019-12-18",null,305116.42496168189,{"$f":"IFERROR($F22+IF($E21>0,SUMPRODUCT(($F$5:$F21-$E$5:$E21)*($F22/SUM($F22:$F$35))),SUMPRODUCT(($F$5:$F21-$E$5:$E21)*($F22/SUMIF($E$6:$E$35,\"\",$F$6:$F$35))*($E$5:$E21>0))),\"\")","v":314581.26011461735},314581.26011461735,0,5485946.9289826751,4976742,0.90718012121252822,2.8873237502246834E-2,-314581.26011461735,null,1053.8731688320092,{"$f":"IFERROR($P22+IF($O21>0,SUMPRODUCT(($P$5:$P21-$O$5:$O21)*($P22/SUM($P22:$P$35))),SUMPRODUCT(($P$5:$P21-$O$5:$O21)*($P22/SUMIF($O$6:$O$35,\"\",$P$6:$P$35))*($O$5:$O21>0))),\"\")","v":1067.5081609653878},1067.5081609653878,0,{"$error":"#DIV/0!"},0,null,{"$error":"#DIV/0!"},0,0,{"$error":"#DIV/0!"},294.68745215973775]
[2.6271106081964535E-2,4413.5458217700425,"1900-01-05","2019-12-19",null,308948.20752390299,{"$f":"IFERROR($F23+IF($E22>0,SUMPRODUCT(($F$5:$F22-$E$5:$E22)*($F23/SUM($F23:$F$35))),SUMPRODUCT(($F$5:$F22-$E$5:$E22)*($F23/SUMIF($E$6:$E$35,\"\",$F$6:$F$35))*($E$5:$E22>0))),\"\")","v":318531.906124776},318531.906124776,0,5794895.136506578,4976742,0.85881485044442107,3.0010900076231806E-2,-318531.906124776,null,1095.3978527824606,{"$f":"IFERROR($P23+IF($O22>0,SUMPRODUCT(($P$5:$P22-$O$5:$O22)*($P23/SUM($P23:$P$35))),SUMPRODUCT(($P$5:$P22-$O$5:$O22)*($P23/SUMIF($O$6:$O$35,\"\",$P$6:$P$35))*($O$5:$O22>0))),\"\")","v":1109.5700905311089},1109.5700905311089,0,{"$error":"#DIV/0!"},0,null,{"$error":"#DIV/0!"},0,0,{"$error":"#DIV/0!"},287.0768677374017,null,null,null,null,null,null,null,null,null,null,null,null,null,null,null,null,1]
[4.213407066118318E-2,7078.5238710787762,"1900-01-06","2019-12-20",null,495496.67097551434,{"$f":"IFERROR($F24+IF($E23>0,SUMPRODUCT(($F$5:$F23-$E$5:$E23)*($F24/SUM($F24:$F$35))),SUMPRODUCT(($F$5:$F23-$E$5:$E23)*($F24/SUMIF($E$6:$E$35,\"\",$F$6:$F$35))*($E$5:$E23>0))),\"\")","v":510867.17851276189},510867.17851276189,0,6290391.8074820926,4976742,0.79116566222161633,3.2902887328735322E-2,-510867.17851276189,null,1200.9553874988389,{"$f":"IFERROR($P24+IF($O23>0,SUMPRODUCT(($P$5:$P23-$O$5:$O23)*($P24/SUM($P24:$P$35))),SUMPRODUCT(($P$5:$P23-$O$5:$O23)*($P24/SUMIF($O$6:$O$35,\"\",$P$6:$P$35))*($O$5:$O23>0))),\"\")","v":1216.4933267360941},1216.4933267360941,0,{"$error":"#DIV/0!"},0,null,{"$error":"#DIV/0!"},0,0,{"$error":"#DIV/0!"},419.95066251899738,null,null,null,null,null,null,null,null,null,null,null,null,null,null,null,null,1]
[4.2850034102958755E-2,7198.8057292970716,"1900-01-07","2019-12-21",null,503916.40105079499,{"$f":"IFERROR($F25+IF($E24>0,SUMPRODUCT(($F$5:$F24-$E$5:$E24)*($F25/SUM($F25:$F$35))),SUMPRODUCT(($F$5:$F24-$E$5:$E24)*($F25/SUMIF($E$6:$E$35,\"\",$F$6:$F$35))*($E$5:$E24>0))),\"\")","v":519548.09202713385},519548.09202713385,0,6794308.2085328875,4976742,0.73248693571919088,3.8845177828174503E-2,-519548.09202713385,null,1417.848990728369,{"$f":"IFERROR($P25+IF($O24>0,SUMPRODUCT(($P$5:$P24-$O$5:$O24)*($P25/SUM($P25:$P$35))),SUMPRODUCT(($P$5:$P24-$O$5:$O24)*($P25/SUMIF($O$6:$O$35,\"\",$P$6:$P$35))*($O$5:$O24>0))),\"\")","v":1436.1930955093321},1436.1930955093321,0,{"$error":"#DIV/0!"},0,null,{"$error":"#DIV/0!"},0,0,{"$error":"#DIV/0!"},361.75364834411846,null,null,null,null,null,null,null,null,null,null,null,null,null,null,null,null,1]
[4.2981665587124775E-2,7220.919818636964,"1900-01-01","2019-12-22",null,505464.38730458746,{"$f":"IFERROR($F26+IF($E25>0,SUMPRODUCT(($F$5:$F25-$E$5:$E25)*($F26/SUM($F26:$F$35))),SUMPRODUCT(($F$5:$F25-$E$5:$E25)*($F26/SUMIF($E$6:$E$35,\"\",$F$6:$F$35))*($E$5:$E25>0))),\"\")","v":521144.09744185157},521144.09744185157,0,7299772.5958374748,4976742,0.68176671734101291,3.9689389394460699E-2,-521144.09744185157,null,1448.6627128978153,{"$f":"IFERROR($P26+IF($O25>0,SUMPRODUCT(($P$5:$P25-$O$5:$O25)*($P26/SUM($P26:$P$35))),SUMPRODUCT(($P$5:$P25-$O$5:$O25)*($P26/SUMIF($O$6:$O$35,\"\",$P$6:$P$35))*($O$5:$O25>0))),\"\")","v":1467.4054850628681},1467.4054850628681,0,{"$error":"#DIV/0!"},0,null,{"$error":"#DIV/0!"},0,0,{"$error":"#DIV/0!"},355.14661949047041]
[2.5128370882520217E-2,4221.5663082633973,"1900-01-02","2019-12-23",null,295509.64157843782,{"$f":"IFERROR($F27+IF($E26>0,SUMPRODUCT(($F$5:$F26-$E$5:$E26)*($F27/SUM($F27:$F$35))),SUMPRODUCT(($F$5:$F26-$E$5:$E26)*($F27/SUMIF($E$6:$E$35,\"\",$F$6:$F$35))*($E$5:$E26>0))),\"\")","v":304676.47041760705},304676.47041760705,0,7595282.2374159126,4976742,0.65524122006731389,2.5998002804004407E-2,-304676.47041760705,null,948.92710234616061,{"$f":"IFERROR($P27+IF($O26>0,SUMPRODUCT(($P$5:$P26-$O$5:$O26)*($P27/SUM($P27:$P$35))),SUMPRODUCT(($P$5:$P26-$O$5:$O26)*($P27/SUMIF($O$6:$O$35,\"\",$P$6:$P$35))*($O$5:$O26>0))),\"\")","v":961.20430415591852},961.20430415591852,0,{"$error":"#DIV/0!"},0,null,{"$error":"#DIV/0!"},0,0,{"$error":"#DIV/0!"},316.97368509513558]
[3.3350212092310691E-2,5602.8356315081974,"1900-01-03","2019-12-24",null,392198.49420557381,{"$f":"IFERROR($F28+IF($E27>0,SUMPRODUCT(($F$5:$F27-$E$5:$E27)*($F28/SUM($F28:$F$35))),SUMPRODUCT(($F$5:$F27-$E$5:$E27)*($F28/SUMIF($E$6:$E$35,\"\",$F$6:$F$35))*($E$5:$E27>0))),\"\")","v":404364.65043708927},404364.65043708927,0,7987480.7316214861,4976742,0.62306779411656921,3.196374566875098E-2,-404364.65043708927,null,1166.6767169094105,{"$f":"IFERROR($P28+IF($O27>0,SUMPRODUCT(($P$5:$P27-$O$5:$O27)*($P28/SUM($P28:$P$35))),SUMPRODUCT(($P$5:$P27-$O$5:$O27)*($P28/SUMIF($O$6:$O$35,\"\",$P$6:$P$35))*($O$5:$O27>0))),\"\")","v":1181.7711593221402},1181.7711593221402,0,{"$error":"#DIV/0!"},0,null,{"$error":"#DIV/0!"},0,0,{"$error":"#DIV/0!"},342.16831850003126]
[3.3875622583135243E-2,5691.1045939667219,"1900-01-04","2019-12-25",null,398377.32157767052,{"$f":"IFERROR($F29+IF($E28>0,SUMPRODUCT(($F$5:$F28-$E$5:$E28)*($F29/SUM($F29:$F$35))),SUMPRODUCT(($F$5:$F28-$E$5:$E28)*($F29/SUMIF($E$6:$E$35,\"\",$F$6:$F$35))*($E$5:$E28>0))),\"\")","v":410735.14753828262},410735.14753828262,0,8385858.0531991571,4976742,0.5934684284456021,3.2088925321306111E-2,-410735.14753828262,null,1171.2457742276729,{"$f":"IFERROR($P29+IF($O28>0,SUMPRODUCT(($P$5:$P28-$O$5:$O28)*($P29/SUM($P29:$P$35))),SUMPRODUCT(($P$5:$P28-$O$5:$O28)*($P29/SUMIF($O$6:$O$35,\"\",$P$6:$P$35))*($O$5:$O28>0))),\"\")","v":1186.3993310219373},1186.3993310219373,0,{"$error":"#DIV/0!"},0,null,{"$error":"#DIV/0!"},0,0,{"$error":"#DIV/0!"},346.20311795395628]
[3.8771886155185897E-2,6513.6768740712314,"1900-01-05","2019-12-26",null,455957.38118498621,{"$f":"IFERROR($F30+IF($E29>0,SUMPRODUCT(($F$5:$F29-$E$5:$E29)*($F30/SUM($F30:$F$35))),SUMPRODUCT(($F$5:$F29-$E$5:$E29)*($F30/SUMIF($E$6:$E$35,\"\",$F$6:$F$35))*($E$5:$E29>0))),\"\")","v":470101.36392935022},470101.36392935022,0,8841815.434384143,4976742,0.56286427113671633,3.5579326219634382E-2,-470101.36392935022,null,1298.6454070166546,{"$f":"IFERROR($P30+IF($O29>0,SUMPRODUCT(($P$5:$P29-$O$5:$O29)*($P30/SUM($P30:$P$35))),SUMPRODUCT(($P$5:$P29-$O$5:$O29)*($P30/SUMIF($O$6:$O$35,\"\",$P$6:$P$35))*($O$5:$O29>0))),\"\")","v":1315.4472579721589},1315.4472579721589,0,{"$error":"#DIV/0!"},0,null,{"$error":"#DIV/0!"},0,0,{"$error":"#DIV/0!"},357.36998277987954]
[4.1320151175564909E-2,6941.7853974949066,"1900-01-06","2019-12-27",null,485924.97782464349,{"$f":"IFERROR($F31+IF($E30>0,SUMPRODUCT(($F$5:$F30-$E$5:$E30)*($F31/SUM($F31:$F$35))),SUMPRODUCT(($F$5:$F30-$E$5:$E30)*($F31/SUMIF($E$6:$E$35,\"\",$F$6:$F$35))*($E$5:$E30>0))),\"\")","v":500998.56756135362},500998.56756135362,0,9327740.4122087862,4976742,0.53354207772400042,3.9637901235305827E-2,-500998.56756135362,null,1446.7833950886622,{"$f":"IFERROR($P31+IF($O30>0,SUMPRODUCT(($P$5:$P30-$O$5:$O30)*($P31/SUM($P31:$P$35))),SUMPRODUCT(($P$5:$P30-$O$5:$O30)*($P31/SUMIF($O$6:$O$35,\"\",$P$6:$P$35))*($O$5:$O30>0))),\"\")","v":1465.5018526736483},1465.5018526736483,0,{"$error":"#DIV/0!"},0,null,{"$error":"#DIV/0!"},0,0,{"$error":"#DIV/0!"},341.86143582646201]
[5.1302415337542831E-2,8618.8057767071969,"1900-01-07","2019-12-28",null,603316.40436950373,{"$f":"IFERROR($F32+IF($E31>0,SUMPRODUCT(($F$5:$F31-$E$5:$E31)*($F32/SUM($F32:$F$35))),SUMPRODUCT(($F$5:$F31-$E$5:$E31)*($F32/SUMIF($E$6:$E$35,\"\",$F$6:$F$35))*($E$5:$E31>0))),\"\")","v":622031.52373135474},622031.52373135474,0,9931056.8165782895,4976742,0.50112914384822937,4.3995596218855709E-2,-622031.52373135474,null,1605.8392619882331,{"$f":"IFERROR($P32+IF($O31>0,SUMPRODUCT(($P$5:$P31-$O$5:$O31)*($P32/SUM($P32:$P$35))),SUMPRODUCT(($P$5:$P31-$O$5:$O31)*($P32/SUMIF($O$6:$O$35,\"\",$P$6:$P$35))*($O$5:$O31>0))),\"\")","v":1626.6155815229135},1626.6155815229135,0,{"$error":"#DIV/0!"},0,null,{"$error":"#DIV/0!"},0,0,{"$error":"#DIV/0!"},382.40843798445587]
[5.6544737655585667E-2,9499.5159261383942,"1900-01-01","2019-12-29",null,664966.11482968763,{"$f":"IFERROR($F33+IF($E32>0,SUMPRODUCT(($F$5:$F32-$E$5:$E32)*($F33/SUM($F33:$F$35))),SUMPRODUCT(($F$5:$F32-$E$5:$E32)*($F33/SUMIF($E$6:$E$35,\"\",$F$6:$F$35))*($E$5:$E32>0))),\"\")","v":685593.63319400174},685593.63319400174,0,10596022.931407977,4976742,0.46968018399132522,5.0250849181818727E-2,-685593.63319400174,null,1834.1559951363834,{"$f":"IFERROR($P33+IF($O32>0,SUMPRODUCT(($P$5:$P32-$O$5:$O32)*($P33/SUM($P33:$P$35))),SUMPRODUCT(($P$5:$P32-$O$5:$O32)*($P33/SUMIF($O$6:$O$35,\"\",$P$6:$P$35))*($O$5:$O32>0))),\"\")","v":1857.8862724645276},1857.8862724645276,0,{"$error":"#DIV/0!"},0,null,{"$error":"#DIV/0!"},0,0,{"$error":"#DIV/0!"},369.01808434406831,null,null,null,null,null,null,null,null,null,null,null,null,null,null,null,null,3]
[4.9812056058358943E-2,8368.4254178043047,"1900-01-02","2019-12-30",null,585789.77924630139,{"$f":"IFERROR($F34+IF($E33>0,SUMPRODUCT(($F$5:$F33-$E$5:$E33)*($F34/SUM($F34:$F$35))),SUMPRODUCT(($F$5:$F33-$E$5:$E33)*($F34/SUMIF($E$6:$E$35,\"\",$F$6:$F$35))*($E$5:$E33>0))),\"\")","v":603961.21559403988},603961.21559403988,0,11181812.710654277,4976742,0.44507470557596179,4.376336190170927E-2,-603961.21559403988,null,1597.3627094123881,{"$f":"IFERROR($P34+IF($O33>0,SUMPRODUCT(($P$5:$P33-$O$5:$O33)*($P34/SUM($P34:$P$35))),SUMPRODUCT(($P$5:$P33-$O$5:$O33)*($P34/SUMIF($O$6:$O$35,\"\",$P$6:$P$35))*($O$5:$O33>0))),\"\")","v":1618.0293594620603},1618.0293594620603,0,{"$error":"#DIV/0!"},0,null,{"$error":"#DIV/0!"},0,0,{"$error":"#DIV/0!"},373.26962706958324,null,null,null,null,null,null,null,null,null,null,null,null,null,null,null,null,3]
[4.9165585828717856E-2,8259.8184192246008,{"$f":"WEEKDAY(D35)","v":"1900-01-03"},"2019-12-31",null,578187.28934572206,{"$f":"IFERROR($F35+IF($E34>0,SUMPRODUCT(($F$5:$F34-$E$5:$E34)*($F35/SUM($F35:$F$35))),SUMPRODUCT(($F$5:$F34-$E$5:$E34)*($F35/SUMIF($E$6:$E$35,\"\",$F$6:$F$35))*($E$5:$E34>0))),\"\")","v":596122.8933757809},596122.8933757809,0,11760000,4976742,{"$f":"K35/J35","v":0.4231923469387755},3.6026349885547225E-2,-596122.8933757809,null,1314.9617708224732,{"$f":"IFERROR($P35+IF($O34>0,SUMPRODUCT(($P$5:$P34-$O$5:$O34)*($P35/SUM($P35:$P$35))),SUMPRODUCT(($P$5:$P34-$O$5:$O34)*($P35/SUMIF($O$6:$O$35,\"\",$P$6:$P$35))*($O$5:$O34>0))),\"\")","v":1331.9747225998954},{"$f":"MAX(P35,Q35)","v":1331.9747225998954},{"$f":"IFERROR(O35/R35,0)","v":0},{"$error":"#DIV/0!"},{"$f":"IFERROR(T35,0)","v":0},null,{"$f":"V35/O35","v":{"$error":"#DIV/0!"}},{"$f":"IFERROR(W35,0)","v":0},{"$f":"IFERROR(Z35,0)","v":0},{"$error":"#DIV/0!"},447.5482028759543]
[null,null,null,null,null,null,null,null,null,null,null,null,null,null,null,null,null,null,null,null,null,null,null,null,null,null,{"$f":"ROUNDUP(AVERAGE(AA5:AA35),0)","v":319},null,null,null,null,null,null,null,null,null,null,null,null,null,null,null,null,{"$f":"VLOOKUP(A1,AL5:AR35,7,0)","v":{"$error":"#N/A"}}]
[null,null,null,"ИТОГО",{"$f":"SUM(E5:E35)","v":4976742},{"$f":"SUM(F5:F35)","v":11760000},{"$f":"E37/F37","v":0.4231923469387755},{"$f":"F37-E37","v":6783258},{"$f":"VLOOKUP(A2,бд,9,0)","v":0.96579334247676263},null,null,null,null,null,{"$f":"SUM(O5:O35)","v":17658},null,null,{"$f":"SUM(P5:P35)","v":36499.999999999993},null,{"$f":"E37/#REF!","v":{"$error":"#REF!"}},{"$f":"E37/O37","v":281.84063880394154},{"$f":"SUM(V5:V35)","v":76401},{"$f":"V37/#REF!","v":{"$error":"#REF!"}},{"$f":"V37/O37","v":4.3267074413863407},{"$f":"E37/V37","v":65.139749479718859},null,null,null,null,{"$f":"SUM(AD5:AD35)","v":35087},{"$f":"SUM(AE5:AE35)","v":3002}]
[]
[null,null,null,null,null,null,null,null,null,null,null,null,null,null,null,null,null,null,null,null,null,null,null,null,null,null,null,null,null,null,null,null,null,null,null,null,null,null,"−2°"]
[null,null,null,null,null,null,null,null,null,null,null,null,null,null,null,null,null,null,null,null,null,null,null,null,null,null,null,null,null,null,null,null,null,null,null,null,null,null,"01:00:00"]
[null,null,null,null,null,null,null,null,null,null,null,null,null,null,null,null,null,null,null,null,null,null,null,null,null,null,null,null,null,null,null,null,null,null,null,null,null,null,"−2°"]
[null,null,null,null,null,null,null,null,null,null,null,null,null,null,null,null,null,null,null,null,null,null,null,null,null,null,null,null,null,null,null,null,null,null,null,null,null,null,"02:00:00"]
[null,null,null,null,null,null,null,null,null,null,null,null,null,null,null,null,null,null,null,null,null,null,null,null,null,null,null,null,null,null,null,null,null,null,null,null,null,null,"−2°"]
[null,null,null,null,null,null,null,null,null,null,null,null,null,null,null,null,null,null,null,null,null,null,null,null,null,null,null,null,null,null,null,null,null,null,null,null,null,null,"03:00:00"]
[null,null,null,null,null,null,null,null,null,null,null,null,null,null,null,null,null,null,null,null,null,null,null,null,null,null,null,null,null,null,null,null,null,null,null,null,null,null,"−2°"]
[null,null,null,null,null,null,null,null,null,null,null,null,null,null,null,null,null,null,null,null,null,null,null,null,null,null,null,null,null,null,null,null,null,null,null,null,null,null,"04:00:00"]
[null,null,null,null,null,null,null,null,null,null,null,null,null,null,null,null,null,null,null,null,null,null,null,null,null,null,null,null,null,null,null,null,null,null,null,null,null,null,"−2°"]
[null,null,null,null,null,null,null,null,null,null,null,null,null,null,null,null,null,null,null,null,null,null,null,null,null,null,null,null,null,null,null,null,null,null,null,null,null,null,"05:00:00"]
[null,null,null,null,null,null,null,null,null,null,null,null,null,null,null,null,null,null,null,null,null,null,null,null,null,null,null,null,null,null,null,null,null,null,null,null,null,null,"−1°"]
[null,null,null,null,null,null,null,null,null,null,null,null,null,null,null,null,null,null,null,null,null,null,null,null,null,null,null,null,null,null,null,null,null,null,null,null,null,null,"06:00:00"]
[null,null,null,null,null,null,null,null,null,null,null,null,null,null,null,null,null,null,null,null,null,null,null,null,null,null,null,null,null,null,null,null,null,null,null,null,null,null,"0°"]
[null,null,null,null,null,null,null,null,null,null,null,null,null,null,null,null,null,null,null,null,null,null,null,null,null,null,null,null,null,null,null,null,null,null,null,null,null,null,"07:00:00"]
[null,null,null,null,null,null,null,null,null,null,null,null,null,null,null,null,null,null,null,null,null,null,null,null,null,null,null,null,null,null,null,null,null,null,null,null,null,null,"0°"]
[null,null,null,null,null,null,null,null,null,null,null,null,null,null,null,null,null,null,null,null,null,null,null,null,null,null,null,null,null,null,null,null,null,null,null,null,null,null,"08:00:00"]
[null,null,null,null,null,null,null,null,null,null,null,null,null,null,null,null,null,null,null,null,null,null,null,null,null,null,null,null,null,null,null,null,null,null,null,null,null,null,"0°"]
[null,null,null,null,null,null,null,null,null,null,null,null,null,null,null,null,null,null,null,null,null,null,null,null,null,null,null,null,null,null,null,null,null,null,null,null,null,null,"09:00:00"]
[null,null,null,null,null,null,null,null,null,null,null,null,null,null,null,null,null,null,null,null,null,null,null,null,null,null,null,null,null,null,null,null,null,null,null,null,null,null,"+1°"]
[null,null,null,null,null,null,null,null,null,null,null,null,null,null,null,null,null,null,null,null,null,null,null,null,null,null,null,null,null,null,null,null,null,null,null,null,null,null,"09:21:00"]
[null,null,null,null,null,null,null,null,null,null,null,null,null,null,null,null,null,null,null,null,null,null,null,null,null,null,null,null,null,null,null,null,null,null,null,null,null,null,"Восход"]
[null,null,null,null,null,null,null,null,null,null,null,null,null,null,null,null,null,null,null,null,null,null,null,null,null,null,null,null,null,null,null,null,null,null,null,null,null,null,"10:00:00"]
[null,null,null,null,null,null,null,null,null,null,null,null,null,null,null,null,null,null,null,null,null,null,null,null,null,null,null,null,null,null,null,null,null,null,null,null,null,null,"+1°"]
[null,null,null,null,null,null,null,null,null,null,null,null,null,null,null,null,null,null,null,null,null,null,null,null,null,null,null,null,null,null,null,null,null,null,null,null,null,null,"11:00:00"]
[null,null,null,null,null,null,null,null,null,null,null,null,null,null,null,null,null,null,null,null,null,null,null,null,null,null,null,null,null,null,null,null,null,null,null,null,null,null,"+1°"]
[null,null,null,null,null,null,null,null,null,null,null,null,null,null,null,null,null,null,null,null,null,null,null,null,null,null,null,null,null,null,null,null,null,null,null,null,null,null,"12:00:00"]
[null,null,null,null,null,null,null,null,null,null,null,null,null,null,null,null,null,null,null,null,null,null,null,null,null,null,null,null,null,null,null,null,null,null,null,null,null,null,"+1°"]
[null,null,null,null,null,null,null,null,null,null,null,null,null,null,null,null,null,null,null,null,null,null,null,null,null,null,null,null,null,null,null,null,null,null,null,null,null,null,"13:00:00"]
[null,null,null,null,null,null,null,null,null,null,null,null,null,null,null,null,null,null,null,null,null,null,null,null,null,null,null,null,null,null,null,null,null,null,null,null,null,null,"+1°"]
[null,null,null,null,null,null,null,null,null,null,null,null,null,null,null,null,null,null,null,null,null,null,null,null,null,null,null,null,null,null,null,null,null,null,null,null,null,null,"14:00:00"]
[null,null,null,null,null,null,null,null,null,null,null,null,null,null,null,null,null,null,null,null,null,null,null,null,null,null,null,null,null,null,null,null,null,null,null,null,null,null,"+1°"]
[null,null,null,null,null,null,null,null,null,null,null,null,null,null,null,null,null,null,null,null,null,null,null,null,null,null,null,null,null,null,null,null,null,null,null,null,null,null,"15:00:00"]
[null,null,null,null,null,null,null,null,null,null,null,null,null,null,null,null,null,null,null,null,null,null,null,null,null,null,null,null,null,null,null,null,null,null,null,null,null,null,"+1°"]
[null,null,null,null,null,null,null,null,null,null,null,null,null,null,null,null,null,null,null,null,null,null,null,null,null,null,null,null,null,null,null,null,null,null,null,null,null,null,"16:00:00"]
[null,null,null,null,null,null,null,null,null,null,null,null,null,null,null,null,null,null,null,null,null,null,null,null,null,null,null,null,null,null,null,null,null,null,null,null,null,null,"0°"]
[null,null,null,null,null,null,null,null,null,null,null,null,null,null,null,null,null,null,null,null,null,null,null,null,null,null,null,null,null,null,null,null,null,null,null,null,null,null,"16:17:00"]
[null,null,null,null,null,null,null,null,null,null,null,null,null,null,null,null,null,null,null,null,null,null,null,null,null,null,null,null,null,null,null,null,null,null,null,null,null,null,"Закат"]
[null,null,null,null,null,null,null,null,null,null,null,null,null,null,null,null,null,null,null,null,null,null,null,null,null,null,null,null,null,null,null,null,null,null,null,null,null,null,"17:00:00"]
[null,null,null,null,null,null,null,null,null,null,null,null,null,null,null,null,null,null,null,null,null,null,null,null,null,null,null,null,null,null,null,null,null,null,null,null,null,null,"+1°"]
[null,null,null,null,null,null,null,null,null,null,null,null,null,null,null,null,null,null,null,null,null,null,null,null,null,null,null,null,null,null,null,null,null,null,null,null,null,null,"Погода на карте"]
[null,null,null,null,null,null,null,null,null,null,null,null,null,null,null,null,null,null,null,null,null,null,null,null,null,null,null,null,null,null,null,null,null,null,null,null,null,null,"Не удалось получить данные"]
[null,null,null,null,null,null,null,null,null,null,null,null,null,null,null,null,null,null,null,null,null,null,null,null,null,null,null,null,null,null,null,null,null,null,null,null,null,null,"Попробовать снова"]
[null,null,null,null,null,null,null,null,null,null,null,null,null,null,null,null,null,null,null,null,null,null,null,null,null,null,null,null,null,null,null,null,null,null,null,null,null,null,"В ближайшие два часа осадков не ожидается"]
[null,null,null,null,null,null,null,null,null,null,null,null,null,null,null,null,null,null,null,null,null,null,null,null,null,null,null,null,null,null,null,null,null,null,null,null,null,null,"Показать на карте"]
[null,null,null,null,null,null,null,null,null,null,null,null,null,null,null,null,null,null,null,null,null,null,null,null,null,null,null,null,null,null,null,null,null,null,null,null,null,null,"осадки"]
[null,null,null,null,null,null,null,null,null,null,null,null,null,null,null,null,null,null,null,null,null,null,null,null,null,null,null,null,null,null,null,null,null,null,null,null,null,null,"температура"]
[null,null,null,null,null,null,null,null,null,null,null,null,null,null,null,null,null,null,null,null,null,null,null,null,null,null,null,null,null,null,null,null,null,null,null,null,null,null,"Ветер"]
[null,null,null,null,null,null,null,null,null,null,null,null,null,null,null,null,null,null,null,null,null,null,null,null,null,null,null,null,null,null,null,null,null,null,null,null,null,null,"Давление"]
[null,null,null,null,null,null,null,null,null,null,null,null,null,null,null,null,null,null,null,null,null,null,null,null,null,null,null,null,null,null,null,null,null,null,null,null,null,null,"Пыльца"]
[]
[null,null,null,null,null,null,null,null,null,null,null,null,null,null,null,null,null,null,null,null,null,null,null,null,null,null,null,null,null,null,null,null,null,null,null,null,null,null,"Прогноз на 10 дней"]
[]
[null,null,null,null,null,null,null,null,null,null,null,null,null,null,null,null,null,null,null,null,null,null,null,null,null,null,null,null,null,null,null,null,null,null,null,null,null,null,"Подробный прогноз на 10 днейНа месяц"]
[]
[null,null,null,null,null,null,null,null,null,null,null,null,null,null,null,null,null,null,null,null,null,null,null,null,null,null,null,null,null,null,null,null,null,null,null,null,null,null,"Ср"]
[null,null,null,null,null,null,null,null,null,null,null,null,null,null,null,null,null,null,null,null,null,null,null,null,null,null,null,null,null,null,null,null,null,null,null,null,null,null,"2019-12-04"]
[null,null,null,null,null,null,null,null,null,null,null,null,null,null,null,null,null,null,null,null,null,null,null,null,null,null,null,null,null,null,null,null,null,null,null,null,null,null,"−9°"]
[null,null,null,null,null,null,null,null,null,null,null,null,null,null,null,null,null,null,null,null,null,null,null,null,null,null,null,null,null,null,null,null,null,null,null,null,null,null,"−11°"]
[null,null,null,null,null,null,null,null,null,null,null,null,null,null,null,null,null,null,null,null,null,null,null,null,null,null,null,null,null,null,null,null,null,null,null,null,null,null,"Небольшой снег"]
[null,null,null,null,null,null,null,null,null,null,null,null,null,null,null,null,null,null,null,null,null,null,null,null,null,null,null,null,null,null,null,null,null,null,null,null,null,null,"Чт"]
[null,null,null,null,null,null,null,null,null,null,null,null,null,null,null,null,null,null,null,null,null,null,null,null,null,null,null,null,null,null,null,null,null,null,null,null,null,null,"2019-12-05"]
[null,null,null,null,null,null,null,null,null,null,null,null,null,null,null,null,null,null,null,null,null,null,null,null,null,null,null,null,null,null,null,null,null,null,null,null,null,null,"−9°"]
[null,null,null,null,null,null,null,null,null,null,null,null,null,null,null,null,null,null,null,null,null,null,null,null,null,null,null,null,null,null,null,null,null,null,null,null,null,null,"−11°"]
[null,null,null,null,null,null,null,null,null,null,null,null,null,null,null,null,null,null,null,null,null,null,null,null,null,null,null,null,null,null,null,null,null,null,null,null,null,null,"Небольшой снег"]
[null,null,null,null,null,null,null,null,null,null,null,null,null,null,null,null,null,null,null,null,null,null,null,null,null,null,null,null,null,null,null,null,null,null,null,null,null,null,"Пт"]
[null,null,null,null,null,null,null,null,null,null,null,null,null,null,null,null,null,null,null,null,null,null,null,null,null,null,null,null,null,null,null,null,null,null,null,null,null,null,"2019-12-06"]
[null,null,null,null,null,null,null,null,null,null,null,null,null,null,null,null,null,null,null,null,null,null,null,null,null,null,null,null,null,null,null,null,null,null,null,null,null,null,"+1°"]
[null,null,null,null,null,null,null,null,null,null,null,null,null,null,null,null,null,null,null,null,null,null,null,null,null,null,null,null,null,null,null,null,null,null,null,null,null,null,"−11°"]
[null,null,null,null,null,null,null,null,null,null,null,null,null,null,null,null,null,null,null,null,null,null,null,null,null,null,null,null,null,null,null,null,null,null,null,null,null,null,"Снег"]
[null,null,null,null,null,null,null,null,null,null,null,null,null,null,null,null,null,null,null,null,null,null,null,null,null,null,null,null,null,null,null,null,null,null,null,null,null,null,"Вчера"]
[null,null,null,null,null,null,null,null,null,null,null,null,null,null,null,null,null,null,null,null,null,null,null,null,null,null,null,null,null,null,null,null,null,null,null,null,null,null,"2019-12-07"]
[null,null,null,null,null,null,null,null,null,null,null,null,null,null,null,null,null,null,null,null,null,null,null,null,null,null,null,null,null,null,null,null,null,null,null,null,null,null,"+1°"]
[null,null,null,null,null,null,null,null,null,null,null,null,null,null,null,null,null,null,null,null,null,null,null,null,null,null,null,null,null,null,null,null,null,null,null,null,null,null,"0°"]
[null,null,null,null,null,null,null,null,null,null,null,null,null,null,null,null,null,null,null,null,null,null,null,null,null,null,null,null,null,null,null,null,null,null,null,null,null,null,"Небольшой снег"]
[null,null,null,null,null,null,null,null,null,null,null,null,null,null,null,null,null,null,null,null,null,null,null,null,null,null,null,null,null,null,null,null,null,null,null,null,null,null,"Сегодня"]
[null,null,null,null,null,null,null,null,null,null,null,null,null,null,null,null,null,null,null,null,null,null,null,null,null,null,null,null,null,null,null,null,null,null,null,null,null,null,"2019-12-08"]
[null,null,null,null,null,null,null,null,null,null,null,null,null,null,null,null,null,null,null,null,null,null,null,null,null,null,null,null,null,null,null,null,null,null,null,null,null,null,"днём0°"]
[null,null,null,null,null,null,null,null,null,null,null,null,null,null,null,null,null,null,null,null,null,null,null,null,null,null,null,null,null,null,null,null,null,null,null,null,null,null,"ночью−2°"]
[null,null,null,null,null,null,null,null,null,null,null,null,null,null,null,null,null,null,null,null,null,null,null,null,null,null,null,null,null,null,null,null,null,null,null,null,null,null,"Небольшой снег"]
[null,null,null,null,null,null,null,null,null,null,null,null,null,null,null,null,null,null,null,null,null,null,null,null,null,null,null,null,null,null,null,null,null,null,null,null,null,null,"Пн"]
[null,null,null,null,null,null,null,null,null,null,null,null,null,null,null,null,null,null,null,null,null,null,null,null,null,null,null,null,null,null,null,null,null,null,null,null,null,null,"2019-12-09"]
[null,null,null,null,null,null,null,null,null,null,null,null,null,null,null,null,null,null,null,null,null,null,null,null,null,null,null,null,null,null,null,null,null,null,null,null,null,null,"+1°"]
[null,null,null,null,null,null,null,null,null,null,null,null,null,null,null,null,null,null,null,null,null,null,null,null,null,null,null,null,null,null,null,null,null,null,null,null,null,null,"−2°"]
[null,null,null,null,null,null,null,null,null,null,null,null,null,null,null,null,null,null,null,null,null,null,null,null,null,null,null,null,null,null,null,null,null,null,null,null,null,null,"Пасмурно"]
[null,null,null,null,null,null,null,null,null,null,null,null,null,null,null,null,null,null,null,null,null,null,null,null,null,null,null,null,null,null,null,null,null,null,null,null,null,null,"Вт"]
[null,null,null,null,null,null,null,null,null,null,null,null,null,null,null,null,null,null,null,null,null,null,null,null,null,null,null,null,null,null,null,null,null,null,null,null,null,null,"2019-12-10"]
[null,null,null,null,null,null,null,null,null,null,null,null,null,null,null,null,null,null,null,null,null,null,null,null,null,null,null,null,null,null,null,null,null,null,null,null,null,null,"−2°"]
[null,null,null,null,null,null,null,null,null,null,null,null,null,null,null,null,null,null,null,null,null,null,null,null,null,null,null,null,null,null,null,null,null,null,null,null,null,null,"−2°"]
[null,null,null,null,null,null,null,null,null,null,null,null,null,null,null,null,null,null,null,null,null,null,null,null,null,null,null,null,null,null,null,null,null,null,null,null,null,null,"Пасмурно"]
[null,null,null,null,null,null,null,null,null,null,null,null,null,null,null,null,null,null,null,null,null,null,null,null,null,null,null,null,null,null,null,null,null,null,null,null,null,null,"Ср"]
[null,null,null,null,null,null,null,null,null,null,null,null,null,null,null,null,null,null,null,null,null,null,null,null,null,null,null,null,null,null,null,null,null,null,null,null,null,null,"2019-12-11"]
[null,null,null,null,null,null,null,null,null,null,null,null,null,null,null,null,null,null,null,null,null,null,null,null,null,null,null,null,null,null,null,null,null,null,null,null,null,null,"−1°"]
[null,null,null,null,null,null,null,null,null,null,null,null,null,null,null,null,null,null,null,null,null,null,null,null,null,null,null,null,null,null,null,null,null,null,null,null,null,null,"−3°"]
[null,null,null,null,null,null,null,null,null,null,null,null,null,null,null,null,null,null,null,null,null,null,null,null,null,null,null,null,null,null,null,null,null,null,null,null,null,null,"Небольшой снег"]
[null,null,null,null,null,null,null,null,null,null,null,null,null,null,null,null,null,null,null,null,null,null,null,null,null,null,null,null,null,null,null,null,null,null,null,null,null,null,"Чт"]
[null,null,null,null,null,null,null,null,null,null,null,null,null,null,null,null,null,null,null,null,null,null,null,null,null,null,null,null,null,null,null,null,null,null,null,null,null,null,"2019-12-12"]
[null,null,null,null,null,null,null,null,null,null,null,null,null,null,null,null,null,null,null,null,null,null,null,null,null,null,null,null,null,null,null,null,null,null,null,null,null,null,"−3°"]
[null,null,null,null,null,null,null,null,null,null,null,null,null,null,null,null,null,null,null,null,null,null,null,null,null,null,null,null,null,null,null,null,null,null,null,null,null,null,"−9°"]
[null,null,null,null,null,null,null,null,null,null,null,null,null,null,null,null,null,null,null,null,null,null,null,null,null,null,null,null,null,null,null,null,null,null,null,null,null,null,"Небольшой снег"]
[null,null,null,null,null,null,null,null,null,null,null,null,null,null,null,null,null,null,null,null,null,null,null,null,null,null,null,null,null,null,null,null,null,null,null,null,null,null,"Пт"]
[null,null,null,null,null,null,null,null,null,null,null,null,null,null,null,null,null,null,null,null,null,null,null,null,null,null,null,null,null,null,null,null,null,null,null,null,null,null,"2019-12-13"]
[null,null,null,null,null,null,null,null,null,null,null,null,null,null,null,null,null,null,null,null,null,null,null,null,null,null,null,null,null,null,null,null,null,null,null,null,null,null,"−7°"]
[null,null,null,null,null,null,null,null,null,null,null,null,null,null,null,null,null,null,null,null,null,null,null,null,null,null,null,null,null,null,null,null,null,null,null,null,null,null,"−10°"]
[null,null,null,null,null,null,null,null,null,null,null,null,null,null,null,null,null,null,null,null,null,null,null,null,null,null,null,null,null,null,null,null,null,null,null,null,null,null,"Пасмурно"]
[null,null,null,null,null,null,null,null,null,null,null,null,null,null,null,null,null,null,null,null,null,null,null,null,null,null,null,null,null,null,null,null,null,null,null,null,null,null,"Сб"]
[null,null,null,null,null,null,null,null,null,null,null,null,null,null,null,null,null,null,null,null,null,null,null,null,null,null,null,null,null,null,null,null,null,null,null,null,null,null,"2019-12-14"]
[null,null,null,null,null,null,null,null,null,null,null,null,null,null,null,null,null,null,null,null,null,null,null,null,null,null,null,null,null,null,null,null,null,null,null,null,null,null,"−7°"]
[null,null,null,null,null,null,null,null,null,null,null,null,null,null,null,null,null,null,null,null,null,null,null,null,null,null,null,null,null,null,null,null,null,null,null,null,null,null,"−12°"]
[null,null,null,null,null,null,null,null,null,null,null,null,null,null,null,null,null,null,null,null,null,null,null,null,null,null,null,null,null,null,null,null,null,null,null,null,null,null,"Облачно с прояснениями"]
[null,null,null,null,null,null,null,null,null,null,null,null,null,null,null,null,null,null,null,null,null,null,null,null,null,null,null,null,null,null,null,null,null,null,null,null,null,null,"Вс"]
[null,null,null,null,null,null,null,null,null,null,null,null,null,null,null,null,null,null,null,null,null,null,null,null,null,null,null,null,null,null,null,null,null,null,null,null,null,null,"2019-12-15"]
[null,null,null,null,null,null,null,null,null,null,null,null,null,null,null,null,null,null,null,null,null,null,null,null,null,null,null,null,null,null,null,null,null,null,null,null,null,null,"−10°"]
[null,null,null,null,null,null,null,null,null,null,null,null,null,null,null,null,null,null,null,null,null,null,null,null,null,null,null,null,null,null,null,null,null,null,null,null,null,null,"−10°"]
[null,null,null,null,null,null,null,null,null,null,null,null,null,null,null,null,null,null,null,null,null,null,null,null,null,null,null,null,null,null,null,null,null,null,null,null,null,null,"Пасмурно"]
[null,null,null,null,null,null,null,null,null,null,null,null,null,null,null,null,null,null,null,null,null,null,null,null,null,null,null,null,null,null,null,null,null,null,null,null,null,null,"Пн"]
[null,null,null,null,null,null,null,null,null,null,null,null,null,null,null,null,null,null,null,null,null,null,null,null,null,null,null,null,null,null,null,null,null,null,null,null,null,null,"2019-12-16"]
[null,null,null,null,null,null,null,null,null,null,null,null,null,null,null,null,null,null,null,null,null,null,null,null,null,null,null,null,null,null,null,null,null,null,null,null,null,null,"−9°"]
[null,null,null,null,null,null,null,null,null,null,null,null,null,null,null,null,null,null,null,null,null,null,null,null,null,null,null,null,null,null,null,null,null,null,null,null,null,null,"−12°"]
[null,null,null,null,null,null,null,null,null,null,null,null,null,null,null,null,null,null,null,null,null,null,null,null,null,null,null,null,null,null,null,null,null,null,null,null,null,null,"Небольшой снег"]
[null,null,null,null,null,null,null,null,null,null,null,null,null,null,null,null,null,null,null,null,null,null,null,null,null,null,null,null,null,null,null,null,null,null,null,null,null,null,"Вт"]
[null,null,null,null,null,null,null,null,null,null,null,null,null,null,null,null,null,null,null,null,null,null,null,null,null,null,null,null,null,null,null,null,null,null,null,null,null,null,"2019-12-17"]
[null,null,null,null,null,null,null,null,null,null,null,null,null,null,null,null,null,null,null,null,null,null,null,null,null,null,null,null,null,null,null,null,null,null,null,null,null,null,"−12°"]
[null,null,null,null,null,null,null,null,null,null,null,null,null,null,null,null,null,null,null,null,null,null,null,null,null,null,null,null,null,null,null,null,null,null,null,null,null,null,"−14°"]
[null,null,null,null,null,null,null,null,null,null,null,null,null,null,null,null,null,null,null,null,null,null,null,null,null,null,null,null,null,null,null,null,null,null,null,null,null,null,"Небольшой снег"]
[null,null,null,null,null,null,null,null,null,null,null,null,null,null,null,null,null,null,null,null,null,null,null,null,null,null,null,null,null,null,null,null,null,null,null,null,null,null,"Ср"]
[null,null,null,null,null,null,null,null,null,null,null,null,null,null,null,null,null,null,null,null,null,null,null,null,null,null,null,null,null,null,null,null,null,null,null,null,null,null,"2019-12-18"]
[null,null,null,null,null,null,null,null,null,null,null,null,null,null,null,null,null,null,null,null,null,null,null,null,null,null,null,null,null,null,null,null,null,null,null,null,null,null,"−14°"]
[null,null,null,null,null,null,null,null,null,null,null,null,null,null,null,null,null,null,null,null,null,null,null,null,null,null,null,null,null,null,null,null,null,null,null,null,null,null,"−17°"]
[null,null,null,null,null,null,null,null,null,null,null,null,null,null,null,null,null,null,null,null,null,null,null,null,null,null,null,null,null,null,null,null,null,null,null,null,null,null,"Пасмурно"]
[null,null,null,null,null,null,null,null,null,null,null,null,null,null,null,null,null,null,null,null,null,null,null,null,null,null,null,null,null,null,null,null,null,null,null,null,null,null,"Чт"]
[null,null,null,null,null,null,null,null,null,null,null,null,null,null,null,null,null,null,null,null,null,null,null,null,null,null,null,null,null,null,null,null,null,null,null,null,null,null,"2019-12-19"]
[null,null,null,null,null,null,null,null,null,null,null,null,null,null,null,null,null,null,null,null,null,null,null,null,null,null,null,null,null,null,null,null,null,null,null,null,null,null,"−16°"]
[null,null,null,null,null,null,null,null,null,null,null,null,null,null,null,null,null,null,null,null,null,null,null,null,null,null,null,null,null,null,null,null,null,null,null,null,null,null,"−17°"]
[null,null,null,null,null,null,null,null,null,null,null,null,null,null,null,null,null,null,null,null,null,null,null,null,null,null,null,null,null,null,null,null,null,null,null,null,null,null,"Ясно"]
[null,null,null,null,null,null,null,null,null,null,null,null,null,null,null,null,null,null,null,null,null,null,null,null,null,null,null,null,null,null,null,null,null,null,null,null,null,null,"Пт"]
[null,null,null,null,null,null,null,null,null,null,null,null,null,null,null,null,null,null,null,null,null,null,null,null,null,null,null,null,null,null,null,null,null,null,null,null,null,null,"2019-12-20"]
[null,null,null,null,null,null,null,null,null,null,null,null,null,null,null,null,null,null,null,null,null,null,null,null,null,null,null,null,null,null,null,null,null,null,null,null,null,null,"−16°"]
[null,null,null,null,null,null,null,null,null,null,null,null,null,null,null,null,null,null,null,null,null,null,null,null,null,null,null,null,null,null,null,null,null,null,null,null,null,null,"−15°"]
[null,null,null,null,null,null,null,null,null,null,null,null,null,null,null,null,null,null,null,null,null,null,null,null,null,null,null,null,null,null,null,null,null,null,null,null,null,null,"Снег"]
[null,null,null,null,null,null,null,null,null,null,null,null,null,null,null,null,null,null,null,null,null,null,null,null,null,null,null,null,null,null,null,null,null,null,null,null,null,null,"Сб"]
[null,null,null,null,null,null,null,null,null,null,null,null,null,null,null,null,null,null,null,null,null,null,null,null,null,null,null,null,null,null,null,null,null,null,null,null,null,null,"2019-12-21"]
[null,null,null,null,null,null,null,null,null,null,null,null,null,null,null,null,null,null,null,null,null,null,null,null,null,null,null,null,null,null,null,null,null,null,null,null,null,null,"−11°"]
[null,null,null,null,null,null,null,null,null,null,null,null,null,null,null,null,null,null,null,null,null,null,null,null,null,null,null,null,null,null,null,null,null,null,null,null,null,null,"−11°"]
[null,null,null,null,null,null,null,null,null,null,null,null,null,null,null,null,null,null,null,null,null,null,null,null,null,null,null,null,null,null,null,null,null,null,null,null,null,null,"Снег"]
[null,null,null,null,null,null,null,null,null,null,null,null,null,null,null,null,null,null,null,null,null,null,null,null,null,null,null,null,null,null,null,null,null,null,null,null,null,null,"Вс"]
[null,null,null,null,null,null,null,null,null,null,null,null,null,null,null,null,null,null,null,null,null,null,null,null,null,null,null,null,null,null,null,null,null,null,null,null,null,null,"2019-12-22"]
[null,null,null,null,null,null,null,null,null,null,null,null,null,null,null,null,null,null,null,null,null,null,null,null,null,null,null,null,null,null,null,null,null,null,null,null,null,null,"−10°"]
[null,null,null,null,null,null,null,null,null,null,null,null,null,null,null,null,null,null,null,null,null,null,null,null,null,null,null,null,null,null,null,null,null,null,null,null,null,null,"−12°"]
[null,null,null,null,null,null,null,null,null,null,null,null,null,null,null,null,null,null,null,null,null,null,null,null,null,null,null,null,null,null,null,null,null,null,null,null,null,null,"Пасмурно"]
[null,null,null,null,null,null,null,null,null,null,null,null,null,null,null,null,null,null,null,null,null,null,null,null,null,null,null,null,null,null,null,null,null,null,null,null,null,null,"Пн"]
[null,null,null,null,null,null,null,null,null,null,null,null,null,null,null,null,null,null,null,null,null,null,null,null,null,null,null,null,null,null,null,null,null,null,null,null,null,null,"2019-12-23"]
[null,null,null,null,null,null,null,null,null,null,null,null,null,null,null,null,null,null,null,null,null,null,null,null,null,null,null,null,null,null,null,null,null,null,null,null,null,null,"−11°"]
[null,null,null,null,null,null,null,null,null,null,null,null,null,null,null,null,null,null,null,null,null,null,null,null,null,null,null,null,null,null,null,null,null,null,null,null,null,null,"−11°"]
[null,null,null,null,null,null,null,null,null,null,null,null,null,null,null,null,null,null,null,null,null,null,null,null,null,null,null,null,null,null,null,null,null,null,null,null,null,null,"Пасмурно"]
[null,null,null,null,null,null,null,null,null,null,null,null,null,null,null,null,null,null,null,null,null,null,null,null,null,null,null,null,null,null,null,null,null,null,null,null,null,null,"Вт"]
[null,null,null,null,null,null,null,null,null,null,null,null,null,null,null,null,null,null,null,null,null,null,null,null,null,null,null,null,null,null,null,null,null,null,null,null,null,null,"2019-12-24"]
[null,null,null,null,null,null,null,null,null,null,null,null,null,null,null,null,null,null,null,null,null,null,null,null,null,null,null,null,null,null,null,null,null,null,null,null,null,null,"−10°"]
[null,null,null,null,null,null,null,null,null,null,null,null,null,null,null,null,null,null,null,null,null,null,null,null,null,null,null,null,null,null,null,null,null,null,null,null,null,null,"−12°"]
[null,null,null,null,null,null,null,null,null,null,null,null,null,null,null,null,null,null,null,null,null,null,null,null,null,null,null,null,null,null,null,null,null,null,null,null,null,null,"Снег"]
[null,null,null,null,null,null,null,null,null,null,null,null,null,null,null,null,null,null,null,null,null,null,null,null,null,null,null,null,null,null,null,null,null,null,null,null,null,null,"Ср"]
[null,null,null,null,null,null,null,null,null,null,null,null,null,null,null,null,null,null,null,null,null,null,null,null,null,null,null,null,null,null,null,null,null,null,null,null,null,null,"2019-12-25"]
[null,null,null,null,null,null,null,null,null,null,null,null,null,null,null,null,null,null,null,null,null,null,null,null,null,null,null,null,null,null,null,null,null,null,null,null,null,null,"−11°"]
[null,null,null,null,null,null,null,null,null,null,null,null,null,null,null,null,null,null,null,null,null,null,null,null,null,null,null,null,null,null,null,null,null,null,null,null,null,null,"−13°"]
[null,null,null,null,null,null,null,null,null,null,null,null,null,null,null,null,null,null,null,null,null,null,null,null,null,null,null,null,null,null,null,null,null,null,null,null,null,null,"Пасмурно"]
[null,null,null,null,null,null,null,null,null,null,null,null,null,null,null,null,null,null,null,null,null,null,null,null,null,null,null,null,null,null,null,null,null,null,null,null,null,null,"Чт"]
[null,null,null,null,null,null,null,null,null,null,null,null,null,null,null,null,null,null,null,null,null,null,null,null,null,null,null,null,null,null,null,null,null,null,null,null,null,null,"2019-12-26"]
[null,null,null,null,null,null,null,null,null,null,null,null,null,null,null,null,null,null,null,null,null,null,null,null,null,null,null,null,null,null,null,null,null,null,null,null,null,null,"−11°"]
[null,null,null,null,null,null,null,null,null,null,null,null,null,null,null,null,null,null,null,null,null,null,null,null,null,null,null,null,null,null,null,null,null,null,null,null,null,null,"−11°"]
[null,null,null,null,null,null,null,null,null,null,null,null,null,null,null,null,null,null,null,null,null,null,null,null,null,null,null,null,null,null,null,null,null,null,null,null,null,null,"Пасмурно"]
[null,null,null,null,null,null,null,null,null,null,null,null,null,null,null,null,null,null,null,null,null,null,null,null,null,null,null,null,null,null,null,null,null,null,null,null,null,null,"Пт"]
[null,null,null,null,null,null,null,null,null,null,null,null,null,null,null,null,null,null,null,null,null,null,null,null,null,null,null,null,null,null,null,null,null,null,null,null,null,null,"2019-12-27"]
[null,null,null,null,null,null,null,null,null,null,null,null,null,null,null,null,null,null,null,null,null,null,null,null,null,null,null,null,null,null,null,null,null,null,null,null,null,null,"−8°"]
[null,null,null,null,null,null,null,null,null,null,null,null,null,null,null,null,null,null,null,null,null,null,null,null,null,null,null,null,null,null,null,null,null,null,null,null,null,null,"−8°"]
[null,null,null,null,null,null,null,null,null,null,null,null,null,null,null,null,null,null,null,null,null,null,null,null,null,null,null,null,null,null,null,null,null,null,null,null,null,null,"Снег"]
[null,null,null,null,null,null,null,null,null,null,null,null,null,null,null,null,null,null,null,null,null,null,null,null,null,null,null,null,null,null,null,null,null,null,null,null,null,null,"Сб"]
[null,null,null,null,null,null,null,null,null,null,null,null,null,null,null,null,null,null,null,null,null,null,null,null,null,null,null,null,null,null,null,null,null,null,null,null,null,null,"2019-12-28"]
[null,null,null,null,null,null,null,null,null,null,null,null,null,null,null,null,null,null,null,null,null,null,null,null,null,null,null,null,null,null,null,null,null,null,null,null,null,null,"−8°"]
[null,null,null,null,null,null,null,null,null,null,null,null,null,null,null,null,null,null,null,null,null,null,null,null,null,null,null,null,null,null,null,null,null,null,null,null,null,null,"−10°"]
[null,null,null,null,null,null,null,null,null,null,null,null,null,null,null,null,null,null,null,null,null,null,null,null,null,null,null,null,null,null,null,null,null,null,null,null,null,null,"Снег"]
[null,null,null,null,null,null,null,null,null,null,null,null,null,null,null,null,null,null,null,null,null,null,null,null,null,null,null,null,null,null,null,null,null,null,null,null,null,null,"Вс"]
[null,null,null,null,null,null,null,null,null,null,null,null,null,null,null,null,null,null,null,null,null,null,null,null,null,null,null,null,null,null,null,null,null,null,null,null,null,null,"2019-12-29"]
[null,null,null,null,null,null,null,null,null,null,null,null,null,null,null,null,null,null,null,null,null,null,null,null,null,null,null,null,null,null,null,null,null,null,null,null,null,null,"−9°"]
[null,null,null,null,null,null,null,null,null,null,null,null,null,null,null,null,null,null,null,null,null,null,null,null,null,null,null,null,null,null,null,null,null,null,null,null,null,null,"−11°"]
[null,null,null,null,null,null,null,null,null,null,null,null,null,null,null,null,null,null,null,null,null,null,null,null,null,null,null,null,null,null,null,null,null,null,null,null,null,null,"Пасмурно"]
[null,null,null,null,null,null,null,null,null,null,null,null,null,null,null,null,null,null,null,null,null,null,null,null,null,null,null,null,null,null,null,null,null,null,null,null,null,null,"Пн"]
[null,null,null,null,null,null,null,null,null,null,null,null,null,null,null,null,null,null,null,null,null,null,null,null,null,null,null,null,null,null,null,null,null,null,null,null,null,null,"2019-12-30"]
[null,null,null,null,null,null,null,null,null,null,null,null,null,null,null,null,null,null,null,null,null,null,null,null,null,null,null,null,null,null,null,null,null,null,null,null,null,null,"−11°"]
[null,null,null,null,null,null,null,null,null,null,null,null,null,null,null,null,null,null,null,null,null,null,null,null,null,null,null,null,null,null,null,null,null,null,null,null,null,null,"−13°"]
[null,null,null,null,null,null,null,null,null,null,null,null,null,null,null,null,null,null,null,null,null,null,null,null,null,null,null,null,null,null,null,null,null,null,null,null,null,null,"Снег"]
[null,null,null,null,null,null,null,null,null,null,null,null,null,null,null,null,null,null,null,null,null,null,null,null,null,null,null,null,null,null,null,null,null,null,null,null,null,null,"Вт"]
[null,null,null,null,null,null,null,null,null,null,null,null,null,null,null,null,null,null,null,null,null,null,null,null,null,null,null,null,null,null,null,null,null,null,null,null,null,null,"2019-12-31"]
[null,null,null,null,null,null,null,null,null,null,null,null,null,null,null,null,null,null,null,null,null,null,null,null,null,null,null,null,null,null,null,null,null,null,null,null,null,null,"−11°"]
[null,null,null,null,null,null,null,null,null,null,null,null,null,null,null,null,null,null,null,null,null,null,null,null,null,null,null,null,null,null,null,null,null,null,null,null,null,null,"−13°"]
[null,null,null,null,null,null,null,null,null,null,null,null,null,null,null,null,null,null,null,null,null,null,null,null,null,null,null,null,null,null,null,null,null,null,null,null,null,null,"Снег"]
[null,null,null,null,null,null,null,null,null,null,null,null,null,null,null,null,null,null,null,null,null,null,null,null,null,null,null,null,null,null,null,null,null,null,null,null,null,null,"Ср"]
[null,null,null,null,null,null,null,null,null,null,null,null,null,null,null,null,null,null,null,null,null,null,null,null,null,null,null,null,null,null,null,null,null,null,null,null,null,null,"2019-01-01"]
[null,null,null,null,null,null,null,null,null,null,null,null,null,null,null,null,null,null,null,null,null,null,null,null,null,null,null,null,null,null,null,null,null,null,null,null,null,null,"−11°"]
[null,null,null,null,null,null,null,null,null,null,null,null,null,null,null,null,null,null,null,null,null,null,null,null,null,null,null,null,null,null,null,null,null,null,null,null,null,null,"−14°"]
[null,null,null,null,null,null,null,null,null,null,null,null,null,null,null,null,null,null,null,null,null,null,null,null,null,null,null,null,null,null,null,null,null,null,null,null,null,null,"Пасмурно"]
[null,null,null,null,null,null,null,null,null,null,null,null,null,null,null,null,null,null,null,null,null,null,null,null,null,null,null,null,null,null,null,null,null,null,null,null,null,null,"Чт"]
[null,null,null,null,null,null,null,null,null,null,null,null,null,null,null,null,null,null,null,null,null,null,null,null,null,null,null,null,null,null,null,null,null,null,null,null,null,null,"2019-01-02"]
[null,null,null,null,null,null,null,null,null,null,null,null,null,null,null,null,null,null,null,null,null,null,null,null,null,null,null,null,null,null,null,null,null,null,null,null,null,null,"−13°"]
[null,null,null,null,null,null,null,null,null,null,null,null,null,null,null,null,null,null,null,null,null,null,null,null,null,null,null,null,null,null,null,null,null,null,null,null,null,null,"−18°"]
[null,null,null,null,null,null,null,null,null,null,null,null,null,null,null,null,null,null,null,null,null,null,null,null,null,null,null,null,null,null,null,null,null,null,null,null,null,null,"Пасмурно"]
[null,null,null,null,null,null,null,null,null,null,null,null,null,null,null,null,null,null,null,null,null,null,null,null,null,null,null,null,null,null,null,null,null,null,null,null,null,null,"Пт"]
[null,null,null,null,null,null,null,null,null,null,null,null,null,null,null,null,null,null,null,null,null,null,null,null,null,null,null,null,null,null,null,null,null,null,null,null,null,null,"2019-01-03"]
[null,null,null,null,null,null,null,null,null,null,null,null,null,null,null,null,null,null,null,null,null,null,null,null,null,null,null,null,null,null,null,null,null,null,null,null,null,null,"−16°"]
[null,null,null,null,null,null,null,null,null,null,null,null,null,null,null,null,null,null,null,null,null,null,null,null,null,null,null,null,null,null,null,null,null,null,null,null,null,null,"−16°"]
[null,null,null,null,null,null,null,null,null,null,null,null,null,null,null,null,null,null,null,null,null,null,null,null,null,null,null,null,null,null,null,null,null,null,null,null,null,null,"Пасмурно"]
[null,null,null,null,null,null,null,null,null,null,null,null,null,null,null,null,null,null,null,null,null,null,null,null,null,null,null,null,null,null,null,null,null,null,null,null,null,null,"Сб"]
[null,null,null,null,null,null,null,null,null,null,null,null,null,null,null,null,null,null,null,null,null,null,null,null,null,null,null,null,null,null,null,null,null,null,null,null,null,null,"2019-01-04"]
[null,null,null,null,null,null,null,null,null,null,null,null,null,null,null,null,null,null,null,null,null,null,null,null,null,null,null,null,null,null,null,null,null,null,null,null,null,null,"−16°"]
[null,null,null,null,null,null,null,null,null,null,null,null,null,null,null,null,null,null,null,null,null,null,null,null,null,null,null,null,null,null,null,null,null,null,null,null,null,null,"−17°"]
[null,null,null,null,null,null,null,null,null,null,null,null,null,null,null,null,null,null,null,null,null,null,null,null,null,null,null,null,null,null,null,null,null,null,null,null,null,null,"Пасмурно"]
[null,null,null,null,null,null,null,null,null,null,null,null,null,null,null,null,null,null,null,null,null,null,null,null,null,null,null,null,null,null,null,null,null,null,null,null,null,null,"Вс"]
[null,null,null,null,null,null,null,null,null,null,null,null,null,null,null,null,null,null,null,null,null,null,null,null,null,null,null,null,null,null,null,null,null,null,null,null,null,null,"2019-01-05"]
[null,null,null,null,null,null,null,null,null,null,null,null,null,null,null,null,null,null,null,null,null,null,null,null,null,null,null,null,null,null,null,null,null,null,null,null,null,null,"−15°"]
[null,null,null,null,null,null,null,null,null,null,null,null,null,null,null,null,null,null,null,null,null,null,null,null,null,null,null,null,null,null,null,null,null,null,null,null,null,null,"−15°"]
[null,null,null,null,null,null,null,null,null,null,null,null,null,null,null,null,null,null,null,null,null,null,null,null,null,null,null,null,null,null,null,null,null,null,null,null,null,null,"Пасмурно"]
[null,null,null,null,null,null,null,null,null,null,null,null,null,null,null,null,null,null,null,null,null,null,null,null,null,null,null,null,null,null,null,null,null,null,null,null,null,null,"Пн"]
[null,null,null,null,null,null,null,null,null,null,null,null,null,null,null,null,null,null,null,null,null,null,null,null,null,null,null,null,null,null,null,null,null,null,null,null,null,null,"2019-01-06"]
[null,null,null,null,null,null,null,null,null,null,null,null,null,null,null,null,null,null,null,null,null,null,null,null,null,null,null,null,null,null,null,null,null,null,null,null,null,null,"−12°"]
[null,null,null,null,null,null,null,null,null,null,null,null,null,null,null,null,null,null,null,null,null,null,null,null,null,null,null,null,null,null,null,null,null,null,null,null,null,null,"−13°"]
[null,null,null,null,null,null,null,null,null,null,null,null,null,null,null,null,null,null,null,null,null,null,null,null,null,null,null,null,null,null,null,null,null,null,null,null,null,null,"Пасмурно"]
[null,null,null,null,null,null,null,null,null,null,null,null,null,null,null,null,null,null,null,null,null,null,null,null,null,null,null,null,null,null,null,null,null,null,null,null,null,null,"Вт"]
[null,null,null,null,null,null,null,null,null,null,null,null,null,null,null,null,null,null,null,null,null,null,null,null,null,null,null,null,null,null,null,null,null,null,null,null,null,null,"2019-01-07"]
[null,null,null,null,null,null,null,null,null,null,null,null,null,null,null,null,null,null,null,null,null,null,null,null,null,null,null,null,null,null,null,null,null,null,null,null,null,null,"−15°"]
[null,null,null,null,null,null,null,null,null,null,null,null,null,null,null,null,null,null,null,null,null,null,null,null,null,null,null,null,null,null,null,null,null,null,null,null,null,null,"−17°"]
[null,null,null,null,null,null,null,null,null,null,null,null,null,null,null,null,null,null,null,null,null,null,null,null,null,null,null,null,null,null,null,null,null,null,null,null,null,null,"Пасмурно"]
[null,null,null,null,null,null,null,null,null,null,null,null,null,null,null,null,null,null,null,null,null,null,null,null,null,null,null,null,null,null,null,null,null,null,null,null,null,null,"Ср"]
[null,null,null,null,null,null,null,null,null,null,null,null,null,null,null,null,null,null,null,null,null,null,null,null,null,null,null,null,null,null,null,null,null,null,null,null,null,null,"2019-01-08"]
[null,null,null,null,null,null,null,null,null,null,null,null,null,null,null,null,null,null,null,null,null,null,null,null,null,null,null,null,null,null,null,null,null,null,null,null,null,null,"−15°"]
[null,null,null,null,null,null,null,null,null,null,null,null,null,null,null,null,null,null,null,null,null,null,null,null,null,null,null,null,null,null,null,null,null,null,null,null,null,null,"−16°"]
[null,null,null,null,null,null,null,null,null,null,null,null,null,null,null,null,null,null,null,null,null,null,null,null,null,null,null,null,null,null,null,null,null,null,null,null,null,null,"Облачно с прояснениями"]
[]
[null,null,null,null,null,null,null,null,null,null,null,null,null,null,null,null,null,null,null,null,null,null,null,null,null,null,null,null,null,null,null,null,null,null,null,null,null,null,"09:19:00"]
[null,null,null,null,null,null,null,null,null,null,null,null,null,null,null,null,null,null,null,null,null,null,null,null,null,null,null,null,null,null,null,null,null,null,null,null,null,null,"16:18:00"]
[null,null,null,null,null,null,null,null,null,null,null,null,null,null,null,null,null,null,null,null,null,null,null,null,null,null,null,null,null,null,null,null,null,null,null,null,null,null,"Световой день"]
[null,null,null,null,null,null,null,null,null,null,null,null,null,null,null,null,null,null,null,null,null,null,null,null,null,null,null,null,null,null,null,null,null,null,null,null,null,null,"6 ч 59 мин"]
[null,null,null,null,null,null,null,null,null,null,null,null,null,null,null,null,null,null,null,null,null,null,null,null,null,null,null,null,null,null,null,null,null,null,null,null,null,null,"Растущая луна"]
[null,null,null,null,null,null,null,null,null,null,null,null,null,null,null,null,null,null,null,null,null,null,null,null,null,null,null,null,null,null,null,null,null,null,null,null,null,null,"Спокойное магнитное поле"]
[null,null,null,null,null,null,null,null,null,null,null,null,null,null,null,null,null,null,null,null,null,null,null,null,null,null,null,null,null,null,null,null,null,null,null,null,null,null,"Низкий УФ-индекс"]
[]
[null,null,null,null,null,null,null,null,null,null,null,null,null,null,null,null,null,null,null,null,null,null,null,null,null,null,null,null,null,null,null,null,null,null,null,null,null,null,"Улица Карла Либкнехта"]
[]
[null,null,null,null,null,null,null,null,null,null,null,null,null,null,null,null,null,null,null,null,null,null,null,null,null,null,null,null,null,null,null,null,null,null,null,null,null,null,"Прогноз погоды в Екатеринбурге на сегодня, завтра и на ближайшую неделю с точностью до района — рассчитан с помощью технологии Meteum"]
[null,null,null,null,null,null,null,null,null,null,null,null,null,null,null,null,null,null,null,null,null,null,null,null,null,null,null,null,null,null,null,null,null,null,null,null,null,null,"Ссылки"]
[null,null,null,null,null,null,null,null,null,null,null,null,null,null,null,null,null,null,null,null,null,null,null,null,null,null,null,null,null,null,null,null,null,null,null,null,null,null,"ПомощьПользовательское соглашениеОбратная связь"]
[null,null,null,null,null,null,null,null,null,null,null,null,null,null,null,null,null,null,null,null,null,null,null,null,null,null,null,null,null,null,null,null,null,null,null,null,null,null,"Партнёрам"]
[null,null,null,null,null,null,null,null,null,null,null,null,null,null,null,null,null,null,null,null,null,null,null,null,null,null,null,null,null,null,null,null,null,null,null,null,null,null,"РекламаИнформерыAPI Яндекс.Погоды"]
[null,null,null,null,null,null,null,null,null,null,null,null,null,null,null,null,null,null,null,null,null,null,null,null,null,null,null,null,null,null,null,null,null,null,null,null,null,null,"Прогноз погоды"]
[null,null,null,null,null,null,null,null,null,null,null,null,null,null,null,null,null,null,null,null,null,null,null,null,null,null,null,null,null,null,null,null,null,null,null,null,null,null,"Почасовой прогнозПодробный прогноз на 10 днейПрогноз на месяцПогода на карте"]
[null,null,null,null,null,null,null,null,null,null,null,null,null,null,null,null,null,null,null,null,null,null,null,null,null,null,null,null,null,null,null,null,null,null,null,null,null,null,"Мобильное приложение"]
[null,null,null,null,null,null,null,null,null,null,null,null,null,null,null,null,null,null,null,null,null,null,null,null,null,null,null,null,null,null,null,null,null,null,null,null,null,null,"Исходные данные: ООО «Яндекс.Пробки»; Росгидромет, ФГБУ «ЦАО»; © 2018 ECMWF; ООО «Аэростейт»"]
[null,null,null,null,null,null,null,null,null,null,null,null,null,null,null,null,null,null,null,null,null,null,null,null,null,null,null,null,null,null,null,null,null,null,null,null,null,null,"© 2000–2019  ООО «ЯНДЕКС»"]

{"sheet":"шаблон плана","index":1,"n_rows":12,"n_cols":2,"rows_kept":12,"cut":false,"hidden":false,"merged":[[13,1,14,1],[13,0,14,0],[5,0,6,1],[3,0,3,1],[7,0,8,0],[11,0,12,0],[11,1,12,1],[7,1,8,1],[9,0,10,0],[9,1,10,1]]}
["ПЛАН НА",{"$f":"TODAY()","v":"2019-12-17"}]
[320000,"РУБ."]
[]
["Текущий прогноз выполнения плана:"]
[{"$f":"IFERROR(руб.!I37,0)","v":0.96579334247676263}]
[{"$f":"IFERROR(IF(руб.!H37>0,CONCATENATE(\"Выполняем план\",IF(руб.!G37=0,CONCATENATE(\". Осталось: \",TEXT(руб.!H37,\"# ##р.\")),CONCATENATE(\" на \",TEXT(руб.!G37,\"###%\"),\". Осталось: \",TEXT(руб.!H37,\"# ##р.\")))),CONCATENATE(\"Перевыполняем план на \",TEXT(руб.!G37,\"###%\"),\" (\",TEXT(руб.!H37*-1,\"# ##р.\"),\")\")),\"\")","v":"Выполняем план на 42%. Осталось: 67832 58р."}]
[]
["Покупатель",1026]
[]
["Средний чек",315]
[]
["Количество штук в чеке",{"$f":"руб.!#REF!","v":{"$error":"#REF!"}}]